fUST/lending_fUST_20240227
["ID","MTS","AMOUNT","RATE_DAILY","PERIOD"]
[315256453,1708968641688,-500.0,0.0002,2]
[315256454,1708968641697,-1087.87,0.0002,2]
[315256455,1708968641707,-2290.77,0.0002,2]
[315256456,1708968641720,-1392.36,0.0002,2]
[315256457,1708968641729,-9522.21,0.0002,2]
[315256458,1708968641738,-514.9,0.0002,2]
[315256459,1708968641747,-1572.78,0.0002,2]
[315256460,1708968641756,-972.48,0.0002,2]
[315256461,1708968641764,-652.68,0.0002,2]
[315256462,1708968641774,-153.0,0.00020055,2]
[315256463,1708968641783,-153.0,0.00020055,2]
[315256464,1708968641793,-153.0,0.00020055,2]
[315256465,1708968641802,-153.0,0.00020055,2]
[315256466,1708968641812,-153.0,0.00020055,2]
[315256467,1708968641821,-153.0,0.00020055,2]
[315256468,1708968641831,-153.0,0.00020055,2]
[315256469,1708968641840,-153.0,0.00020055,2]
[315256470,1708968641850,-153.0,0.00020055,2]
[315256471,1708968641860,-166.666666,0.00020076,2]
[315256472,1708968641869,-219.32186514,0.0002013,14]
[315256473,1708968641878,-391.92766448,0.00020173,2]
[315256474,1708968641888,-243.58118859,0.00020191,2]
[315256475,1708968641898,-191.8074923,0.00020192,2]
[315256476,1708968641908,-200.5826354,0.00020192,2]
[315256477,1708968641919,-153.0,0.00020192,2]
[315256478,1708968641930,-153.0,0.00020192,2]
[315256479,1708968641940,-153.0,0.00020192,2]
[315256480,1708968641950,-200.5826354,0.00020192,2]
[315256481,1708968641961,-153.0,0.00020192,2]
[315256482,1708968641969,-153.0,0.00020192,2]
[315256483,1708968641978,-200.5826354,0.00020192,2]
[315256484,1708968641987,-455.1304468,0.00020192,2]
[315256485,1708968641998,-153.0,0.00020192,2]
[315256486,1708968642006,-153.0,0.00020192,2]
[315256487,1708968642015,-153.0,0.00020192,2]
[315256488,1708968642024,-306.0,0.00020192,2]
[315256489,1708968642033,-153.0,0.00020192,2]
[315256490,1708968642042,-200.5826354,0.00020192,2]
[315256491,1708968642051,-153.0,0.00020192,2]
[315256492,1708968642060,-153.0,0.00020192,2]
[315256493,1708968642069,-153.0,0.00020192,2]
[315256494,1708968642077,-153.0,0.00020192,2]
[315256495,1708968642086,-200.5826354,0.00020192,2]
[315256496,1708968642096,-153.0,0.00020192,2]
[315256497,1708968642105,-200.5826354,0.00020192,2]
[315256498,1708968642114,-153.0,0.00020192,2]
[315256499,1708968642123,-153.0,0.00020192,2]
[315256500,1708968642132,-200.5826354,0.00020192,2]
[315256501,1708968642141,-153.0,0.00020192,2]
[315256502,1708968642150,-153.0,0.00020192,2]
[315256503,1708968642159,-153.0,0.00020192,2]
[315256504,1708968642169,-153.0,0.00020192,2]
[315256505,1708968642178,-153.0,0.00020192,2]
[315256506,1708968642187,-153.0,0.00020192,2]
[315256507,1708968642196,-200.5826354,0.00020192,2]
[315256508,1708968642205,-153.0,0.00020192,2]
[315256509,1708968642216,-200.5826354,0.00020192,2]
[315256510,1708968642225,-153.0,0.00020192,2]
[315256511,1708968642234,-153.0,0.00020192,2]
[315256512,1708968642243,-200.5569553,0.00020192,2]
[315256513,1708968642252,-306.0,0.00020192,2]
[315256514,1708968642262,-153.553935,0.00020192,2]
[315256515,1708968642271,-399.333294,0.00020213,2]
[315256516,1708968642280,-243.58118859,0.00020213,2]
[315256517,1708968642289,-399.333294,0.00020213,2]
[315256518,1708968642298,-5000.0,0.00020214,2]
[315256519,1708968642307,-25554.63924688,0.00020214,2]
[315256520,1708968642316,-50000.0,0.00020214,2]
[315256521,1708968642325,-50000.0,0.00020214,2]
[315256522,1708968642334,-50000.0,0.00020214,2]
[315256523,1708968642343,-50000.0,0.00020214,2]
[315256524,1708968642352,-76641.97749256,0.00020214,2]
[315256525,1708968642361,-4753.89718915,0.00020214,2]
[315256526,1708968642371,-16592.99189366,0.00020214,2]
[315256527,1708968642379,-321.05866328,0.00020232,2]
[315256528,1708968642389,-1000.0,0.00020232,2]
[315256530,1708968642398,-243.58118859,0.00020232,2]
[315256531,1708968642407,-6642.90317156,0.00020233,2]
[315256532,1708968642416,-30523.20007122,0.00020233,2]
[315256533,1708968642425,-10633.23001014,0.00020234,2]
[315256535,1708968642435,-1000.0,0.00020234,2]
[315256536,1708968642444,-700.0,0.00020235,2]
[315256537,1708968642453,-231.69813848,0.00020236,2]
[315256539,1708968642463,-436.95590383,0.00020273,2]
[315256540,1708968642473,-588.44,0.00020273,2]
[315256541,1708968642482,-500.0,0.00020273,2]
[315256542,1708968642491,-725.94,0.00020273,2]
[315256543,1708968642501,-623.1,0.00020273,2]
[315256544,1708968642510,-500.0,0.00020273,2]
[315256545,1708968642520,-500.0,0.00020273,2]
[315256546,1708968642530,-834.63,0.00020273,2]
[315256547,1708968642539,-644.58,0.00020273,2]
[315256548,1708968642548,-500.0,0.00020273,2]
[315256555,1708968642650,-500.0,0.00020273,2]
[315256556,1708968642660,-623.93,0.00020273,2]
[315256558,1708968642669,-500.0,0.00020273,2]
[315256560,1708968642679,-500.0,0.00020273,2]
[315256561,1708968642688,-863.65,0.00020273,2]
[315256562,1708968642698,-5031.57,0.00020273,2]
[315256563,1708968642707,-1298.13,0.00020273,2]
[315256564,1708968642718,-1552.5,0.00020273,2]
[315256566,1708968642726,-1089.57,0.00020273,2]
[315256567,1708968642736,-1768.47,0.00020273,2]
[315256568,1708968642745,-1027.29,0.00020273,2]
[315256569,1708968642754,-10000.15,0.00020273,2]
[315256570,1708968642763,-1122.81,0.00020273,2]
[315256571,1708968642772,-787.16,0.00020273,2]
[315256572,1708968642782,-500.0,0.00020273,2]
[315256574,1708968642791,-4193.46,0.00020273,2]
[315256576,1708968642800,-600.35,0.00020273,2]
[315256578,1708968642809,-500.0,0.00020273,2]
[315256580,1708968642818,-500.0,0.00020273,2]
[315256582,1708968642827,-1087.87,0.00020273,2]
[315256584,1708968642837,-2290.77,0.00020273,2]
[315256586,1708968642846,-1392.36,0.00020273,2]
[315256588,1708968642855,-9522.21,0.00020273,2]
[315256590,1708968642865,-514.9,0.00020273,2]
[315256592,1708968642874,-1572.78,0.00020273,2]
[315256594,1708968642884,-972.48,0.00020273,2]
[315256596,1708968642893,-652.68,0.00020273,2]
[315256598,1708968642903,-500.0,0.00020368,2]
[315256600,1708968642912,-500.0,0.00020523,2]
[315256602,1708968642928,-166.666666,0.00020524,2]
[315256604,1708968642938,-737.06,0.00020538,3]
[315256606,1708968642947,-368.54,0.00020538,3]
[315256608,1708968642956,-588.44,0.00020547,2]
[315256609,1708968642967,-500.0,0.00020547,2]
[315256611,1708968642977,-725.94,0.00020547,2]
[315256613,1708968642986,-623.1,0.00020547,2]
[315256615,1708968642995,-500.0,0.00020547,2]
[315256617,1708968643006,-500.0,0.00020547,2]
[315256619,1708968643015,-834.63,0.00020547,2]
[315256621,1708968643024,-644.58,0.00020547,2]
[315256623,1708968643033,-500.0,0.00020547,2]
[315256625,1708968643042,-500.0,0.00020547,2]
[315256627,1708968643051,-623.93,0.00020547,2]
[315256629,1708968643060,-500.0,0.00020547,2]
[315256631,1708968643069,-500.0,0.00020547,2]
[315256633,1708968643078,-863.65,0.00020547,2]
[315256634,1708968643088,-5031.57,0.00020547,2]
[315256636,1708968643097,-1298.13,0.00020547,2]
[315256638,1708968643106,-1552.5,0.00020547,2]
[315256640,1708968643115,-1089.57,0.00020547,2]
[315256642,1708968643124,-1768.47,0.00020547,2]
[315256644,1708968643133,-1027.29,0.00020547,2]
[315256646,1708968643142,-10000.15,0.00020547,2]
[315256648,1708968643152,-1122.81,0.00020547,2]
[315256650,1708968643161,-787.16,0.00020547,2]
[315256652,1708968643171,-500.0,0.00020547,2]
[315256654,1708968643180,-4193.46,0.00020547,2]
[315256656,1708968643189,-600.35,0.00020547,2]
[315256659,1708968643199,-500.0,0.00020547,2]
[315256661,1708968643210,-646.4,0.00020547,2]
[315256662,1708968643219,-1087.87,0.00020547,2]
[315256664,1708968643228,-2290.77,0.00020547,2]
[315256667,1708968643238,-1392.36,0.00020547,2]
[315256668,1708968643247,-9522.21,0.00020547,2]
[315256670,1708968643256,-514.9,0.00020547,2]
[315256672,1708968643266,-1572.78,0.00020547,2]
[315256674,1708968643275,-972.48,0.00020547,2]
[315256676,1708968643284,-652.68,0.00020547,2]
[315256679,1708968643293,-500.0,0.00020678,2]
[315256681,1708968643303,-399.333294,0.0002082,2]
[315256682,1708968643314,-588.44,0.00020821,2]
[315256685,1708968643323,-253.68558529,0.00020821,2]
[315256686,1708968643333,-725.94,0.00020821,2]
[315256688,1708968643343,-623.1,0.00020821,2]
[315256691,1708968643354,-500.0,0.00020821,2]
[315256693,1708968643370,-500.0,0.00020821,2]
[315256694,1708968643382,-834.63,0.00020821,2]
[315256696,1708968643391,-644.58,0.00020821,2]
[315256698,1708968643400,-500.0,0.00020821,2]
[315256701,1708968643410,-500.0,0.00020821,2]
[315256702,1708968643419,-623.93,0.00020821,2]
[315256704,1708968643427,-500.0,0.00020821,2]
[315256706,1708968643437,-500.0,0.00020821,2]
[315256708,1708968643447,-863.65,0.00020821,2]
[315256710,1708968643456,-5031.57,0.00020821,2]
[315256712,1708968643468,-1298.13,0.00020821,2]
[315256714,1708968643477,-1552.5,0.00020821,2]
[315256716,1708968643486,-1089.57,0.00020821,2]
[315256718,1708968643495,-1768.47,0.00020821,2]
[315256720,1708968643504,-1027.29,0.00020821,2]
[315256722,1708968643514,-10000.15,0.00020821,2]
[315256724,1708968643523,-1122.81,0.00020821,2]
[315256726,1708968643532,-787.16,0.00020821,2]
[315256728,1708968643541,-500.0,0.00020821,2]
[315256730,1708968643551,-4193.46,0.00020821,2]
[315256732,1708968643561,-600.35,0.00020821,2]
[315256734,1708968643570,-500.0,0.00020821,2]
[315256736,1708968643579,-1087.87,0.00020821,2]
[315256738,1708968643588,-2290.77,0.00020821,2]
[315256740,1708968643597,-1392.36,0.00020821,2]
[315256742,1708968643606,-9522.21,0.00020821,2]
[315256744,1708968643616,-514.9,0.00020821,2]
[315256746,1708968643626,-1572.78,0.00020821,2]
[315256748,1708968643635,-972.48,0.00020821,2]
[315256750,1708968643645,-652.68,0.00020821,2]
[315256752,1708968643655,-500.0,0.00020833,2]
[315256754,1708968643664,-5000.0,0.00020883,2]
[315256756,1708968643675,-243.58118859,0.00020899,2]
[315256758,1708968643684,-500.0,0.00020899,2]
[315256760,1708968643694,-500.0,0.00020899,2]
[315256762,1708968643703,-500.0,0.00020899,2]
[315256764,1708968643714,-500.0,0.00020899,2]
[315256766,1708968643723,-500.0,0.00020899,2]
[315256768,1708968643733,-500.0,0.00020899,2]
[315256770,1708968643742,-500.0,0.00020899,2]
[315256772,1708968643751,-256.44210122,0.00020899,2]
[315256774,1708968643760,-500.0,0.00020899,2]
[315256776,1708968643769,-500.0,0.00020899,2]
[315256778,1708968643778,-500.0,0.00020899,2]
[315256780,1708968643787,-500.0,0.00020899,2]
[315256782,1708968643797,-500.0,0.00020899,2]
[315256784,1708968643806,-500.0,0.00020899,2]
[315256786,1708968643815,-500.0,0.00020899,2]
[315256788,1708968643824,-500.0,0.00020899,2]
[315256790,1708968643833,-500.0,0.00020899,2]
[315256792,1708968643843,-500.0,0.00020899,2]
[315256794,1708968643852,-500.0,0.00020899,2]
[315256796,1708968643861,-500.0,0.00020899,2]
[315256798,1708968643871,-500.0,0.00020899,2]
[315256800,1708968643882,-500.0,0.00020899,2]
[315256802,1708968643891,-500.0,0.00020899,2]
[315256804,1708968643899,-500.0,0.00020899,2]
[315256806,1708968643909,-500.0,0.00020899,2]
[315256808,1708968643920,-500.0,0.00020899,2]
[315256810,1708968643929,-500.0,0.00020899,2]
[315256812,1708968643938,-500.0,0.00020899,2]
[315256814,1708968643947,-500.0,0.00020899,2]
[315256816,1708968643957,-500.0,0.00020899,2]
[315256818,1708968643967,-500.0,0.00020899,2]
[315256820,1708968643976,-500.0,0.00020899,2]
[315256822,1708968643985,-500.0,0.00020899,2]
[315256824,1708968643993,-501.29045805,0.00020899,2]
[315256826,1708968644004,-253.26527282,0.00020899,2]
[315256828,1708968644015,-160.0,0.00020899,2]
[315256830,1708968644024,-160.0,0.00020899,2]
[315256832,1708968644034,-160.0,0.00020899,2]
[315256834,1708968644043,-160.0,0.00020899,2]
[315256836,1708968644052,-276000.0,0.000209,2]
[315256838,1708968644061,-166.666666,0.00020973,2]
[315256840,1708968644070,-166.14213211,0.00020988,2]
[315256842,1708968644079,-500.0,0.00020988,2]
[315256844,1708968644088,-273.23870182,0.00020989,2]
[315256846,1708968644097,-592.62659572,0.00020989,2]
[315256848,1708968644106,-727.8800468,0.00020989,2]
[315256850,1708968644115,-160.0,0.00020999,2]
[315256852,1708968644124,-160.0,0.00020999,2]
[315256853,1708968644133,-643.59909627,0.00020999,2]
[315256856,1708968644143,-399.333294,0.00020999,2]
[315256858,1708968644152,-500.0,0.00020999,2]
[315256859,1708968644161,-500.0,0.00020999,2]
[315256861,1708968644170,-500.0,0.00020999,2]
[315256863,1708968644179,-500.0,0.00020999,2]
[315256866,1708968644189,-500.0,0.00020999,2]
[315256867,1708968644198,-500.0,0.00020999,2]
[315256870,1708968644207,-500.0,0.00020999,2]
[315256872,1708968644217,-500.0,0.00020999,2]
[315256874,1708968644226,-500.0,0.00020999,2]
[315256876,1708968644235,-500.0,0.00020999,2]
[315256878,1708968644243,-500.0,0.00020999,2]
[315256879,1708968644252,-500.0,0.00020999,2]
[315256881,1708968644262,-500.0,0.00020999,2]
[315256884,1708968644271,-500.0,0.00020999,2]
[315256886,1708968644280,-500.0,0.00020999,2]
[315256887,1708968644290,-262.35647977,0.00020999,2]
[315256890,1708968644299,-500.0,0.00020999,2]
[315256892,1708968644309,-500.0,0.00020999,2]
[315256894,1708968644318,-500.0,0.00020999,2]
[315256896,1708968644328,-319.09963093,0.00020999,2]
[315256897,1708968644339,-262.35647977,0.00020999,2]
[315256899,1708968644348,-376704.64283013,0.00021,2]
[315256903,1708968644368,-1072.56520336,0.00021,2]
[315256905,1708968644380,-55742.93043928,0.00021,2]
[315256937,1708968644694,-500.0,0.00019178,2]
[315256939,1708968644703,-500.0,0.00019178,2]
[315256941,1708968644715,-610.44,0.00019452,2]
[315256943,1708968644724,-500.0,0.00019452,2]
[315256945,1708968644733,-580.0,0.000209,2]
[315256947,1708968644743,-9038.59599974,0.00021,2]
[315256949,1708968644755,-2525.31402966,0.00021,2]
[315256966,1708968644905,-500.0,0.00019178,2]
[315256968,1708968644914,-500.0,0.00019452,2]
[315256970,1708968644924,-500.0,0.00019726,2]
[315256972,1708968644934,-500.0,0.00019726,2]
[315256975,1708968644944,-500.0,0.0002,2]
[315256976,1708968644952,-500.0,0.0002,2]
[315256979,1708968644965,-500.0,0.00020273,2]
[315256980,1708968644974,-501088.20987332,0.00021,2]
[315257402,1708968649367,-269.75457701,0.00019178,2]
[315257818,1708969119494,167.063271,0.00027397,120]
[315257822,1708969227571,219.32186514,0.000192,6]
[315257824,1708969321417,-600.0,0.00016532,2]
[315257844,1708969494560,4224.33883796,0.000192,6]
[315257849,1708969638543,167.063271,0.00027397,120]
[315257855,1708969783504,2834.9470373,0.00015527,2]
[315257856,1708969792582,282.794514,0.00015521,2]
[315257911,1708969832216,-281.44189552,0.00016502,2]
[315257913,1708969832225,-1600.10761346,0.00016503,2]
[315257915,1708969832239,-704.27292795,0.00016504,2]
[315257917,1708969832248,-261.77212706,0.00016505,2]
[315257919,1708969832257,-361.60002435,0.0001651,2]
[315257921,1708969832266,-7452.77007797,0.00016522,2]
[315257923,1708969832278,-22848.7001814,0.00016522,2]
[315257925,1708969832288,-19702.67493575,0.00016523,2]
[315257927,1708969832297,-300.0,0.00016526,2]
[315257929,1708969832308,-2317.1882869,0.0001685,2]
[315257932,1708969832319,-1013.40503691,0.00018,2]
[315257934,1708969832329,-926.4246673,0.00018899,2]
[315257935,1708969832341,-2502.07154571,0.000189,2]
[315257937,1708969832350,-155.04496304,0.00019,2]
[315257938,1708969832359,-437.96965209,0.00019078,2]
[315257940,1708969832369,-304.41,0.00019168,3]
[315257941,1708969832378,-152.2,0.00019168,3]
[315257942,1708969832388,-456.63,0.00019168,3]
[315257943,1708969832401,-8771.39481509,0.00019174,2]
[315257944,1708969832411,-1899.45187925,0.00019176,2]
[315257946,1708969832420,-209.77679152,0.00019177,2]
[315257947,1708969832430,-325.95846595,0.00019178,2]
[315257949,1708969832447,-500.0,0.00019178,2]
[315257951,1708969832458,-500.0,0.00019178,2]
[315257953,1708969832467,-500.0,0.00019178,2]
[315257954,1708969832477,-500.0,0.00019178,2]
[315257956,1708969832486,-500.0,0.00019178,2]
[315257958,1708969832495,-207.50207294,0.00019178,2]
[315257960,1708969832505,-500.0,0.00019178,2]
[315257961,1708969832514,-151.0,0.00019178,2]
[315257962,1708969832524,-500.0,0.00019178,2]
[315257963,1708969832533,-500.0,0.00019178,2]
[315257964,1708969832543,-500.0,0.00019178,2]
[315257965,1708969832553,-500.0,0.00019178,2]
[315257966,1708969832562,-521.32310126,0.00019178,2]
[315257967,1708969832572,-686.49,0.00019178,2]
[315257968,1708969832581,-500.0,0.00019178,2]
[315257969,1708969832592,-275.05211091,0.00019178,2]
[315257970,1708969832602,-439.02807789,0.00019178,2]
[315257971,1708969832612,-500.0,0.00019178,2]
[315257972,1708969832622,-500.0,0.00019178,2]
[315257973,1708969832631,-500.0,0.00019178,2]
[315257974,1708969832642,-500.0,0.00019178,2]
[315257975,1708969832653,-477.95314472,0.00019178,2]
[315257976,1708969832664,-500.0,0.00019178,2]
[315257977,1708969832675,-281.66273147,0.00019178,2]
[315257978,1708969832685,-500.4285355,0.00019178,2]
[315257979,1708969832694,-500.0,0.00019178,2]
[315257980,1708969832704,-500.0,0.00019178,2]
[315257981,1708969832712,-500.0,0.00019178,2]
[315257982,1708969832723,-500.0,0.00019178,2]
[315257983,1708969832733,-1000.0,0.00019178,2]
[315257984,1708969832743,-406.47401518,0.00019178,2]
[315257985,1708969832753,-500.0,0.00019178,2]
[315257986,1708969832762,-231.56852676,0.00019178,2]
[315257987,1708969832773,-500.0,0.00019178,2]
[315257988,1708969832782,-500.0,0.00019178,2]
[315257989,1708969832792,-500.0,0.00019178,2]
[315257990,1708969832801,-503.09039183,0.00019178,2]
[315257991,1708969832812,-500.0,0.00019178,2]
[315257992,1708969832821,-500.0,0.00019178,2]
[315257993,1708969832831,-291.02772414,0.00019178,2]
[315257994,1708969832840,-300.35845883,0.00019178,2]
[315257995,1708969832849,-409.80494479,0.00019178,2]
[315257996,1708969832859,-500.0,0.00019178,2]
[315257997,1708969832868,-500.0,0.00019178,2]
[315257998,1708969832878,-500.0,0.00019178,2]
[315257999,1708969832888,-500.0,0.00019178,2]
[315258000,1708969832898,-500.0,0.00019178,2]
[315258001,1708969832907,-500.0,0.00019178,2]
[315258002,1708969832916,-313.96977276,0.00019178,2]
[315258003,1708969833223,918.07076034,0.00015515,2]
[315258004,1708969833257,19000.0,0.00015515,2]
[315258026,1708969838941,-775.68953518,0.00015515,2]
[315258027,1708969838953,-4206.23970448,0.00015515,2]
[315258028,1708969838962,-186.03022724,0.00019178,2]
[315258029,1708969838971,-500.0,0.00019178,2]
[315258030,1708969838980,-500.0,0.00019178,2]
[315258031,1708969838989,-500.0,0.00019178,2]
[315258032,1708969838998,-500.0,0.00019178,2]
[315258033,1708969839008,-500.0,0.00019178,2]
[315258034,1708969839017,-500.0,0.00019178,2]
[315258035,1708969839027,-500.0,0.00019178,2]
[315258036,1708969839036,-515.24992095,0.00019178,2]
[315258037,1708969839045,-500.0,0.00019178,2]
[315258038,1708969839054,-503.20204968,0.00019178,2]
[315258039,1708969839064,-500.0,0.00019178,2]
[315258040,1708969839073,-418.40116223,0.00019178,2]
[315258041,1708969839082,-562.37040375,0.00019178,2]
[315258042,1708969839092,-500.0,0.00019178,2]
[315258043,1708969839102,-500.0,0.00019178,2]
[315258044,1708969839111,-500.0,0.00019178,2]
[315258045,1708969839120,-1512.73,0.00019178,2]
[315258046,1708969839130,-500.0,0.00019178,2]
[315258047,1708969839139,-635.14,0.00019178,2]
[315258048,1708969839148,-500.0,0.00019178,2]
[315258049,1708969839158,-689.29,0.00019178,2]
[315258050,1708969839167,-500.0,0.00019178,2]
[315258051,1708969839177,-500.0,0.00019178,2]
[315258052,1708969839186,-500.0,0.00019178,2]
[315258053,1708969839198,-500.0,0.00019178,2]
[315258054,1708969839207,-415.96199715,0.00019178,2]
[315258055,1708969839217,-500.0,0.00019178,2]
[315258056,1708969839226,-500.0,0.00019178,2]
[315258057,1708969839236,-500.0,0.00019178,2]
[315258058,1708969839248,-500.0,0.00019178,2]
[315258059,1708969839257,-500.0,0.00019178,2]
[315258060,1708969839267,-597.23,0.00019178,2]
[315258061,1708969839276,-500.0,0.00019178,2]
[315258062,1708969839286,-515.55018952,0.00019178,2]
[315258063,1708969839295,-500.0,0.00019178,2]
[315258064,1708969839304,-965.26,0.00019178,2]
[315258065,1708969839314,-171.64068098,0.00019178,2]
[315258066,1708969839324,-500.0,0.00019178,2]
[315258067,1708969839333,-500.0,0.00019178,2]
[315258068,1708969839342,-676.88,0.00019178,2]
[315258069,1708969839351,-437.3151243,0.00019178,2]
[315258070,1708969839361,-500.0,0.00019178,2]
[315258071,1708969839370,-739.23,0.00019178,2]
[315258072,1708969839380,-500.0,0.00019178,2]
[315258073,1708969839389,-151.25262955,0.00019178,2]
[315258074,1708969839398,-507.21,0.00019178,2]
[315258075,1708969839407,-500.0,0.00019178,2]
[315258076,1708969839416,-500.0,0.00019178,2]
[315258077,1708969839426,-500.0,0.00019178,2]
[315258078,1708969839435,-625.77,0.00019178,2]
[315258079,1708969839447,-500.0,0.00019178,2]
[315258080,1708969839456,-1461.49,0.00019178,2]
[315258081,1708969839465,-541.0,0.00019178,2]
[315258082,1708969839475,-500.0,0.00019178,2]
[315258083,1708969839485,-500.0,0.00019178,2]
[315258084,1708969839494,-500.0,0.00019178,2]
[315258085,1708969839503,-888.15,0.00019178,2]
[315258086,1708969839513,-1024.13,0.00019178,2]
[315258087,1708969839522,-500.0,0.00019178,2]
[315258088,1708969839531,-500.0,0.00019178,2]
[315258089,1708969839540,-500.0,0.00019178,2]
[315258090,1708969839550,-1399.8,0.00019178,2]
[315258091,1708969839559,-500.0,0.00019178,2]
[315258092,1708969839568,-500.0,0.00019178,2]
[315258093,1708969839576,-10437.68,0.00019178,2]
[315258094,1708969839585,-1131.68,0.00019178,2]
[315258095,1708969839595,-500.0,0.00019178,2]
[315258096,1708969839604,-1586.57,0.00019178,2]
[315258097,1708969839613,-607.73433503,0.00019178,2]
[315258098,1708969839622,-500.0,0.00019178,2]
[315258099,1708969839631,-500.0,0.00019178,2]
[315258100,1708969839640,-5277.09,0.00019178,2]
[315258101,1708969839650,-500.0,0.00019178,2]
[315258102,1708969839659,-500.0,0.00019178,2]
[315258103,1708969839669,-1126.07,0.00019178,2]
[315258104,1708969839678,-500.0,0.00019178,2]
[315258105,1708969839687,-170.41229033,0.00019178,2]
[315258106,1708969839697,-1961.44,0.00019178,2]
[315258107,1708969839706,-500.0,0.00019178,2]
[315258108,1708969839717,-500.0,0.00019178,2]
[315258109,1708969839726,-1183.32,0.00019178,2]
[315258110,1708969839735,-358.25874374,0.00019178,2]
[315258111,1708969839744,-500.0,0.00019178,2]
[315258112,1708969839753,-172.04761987,0.00019178,2]
[315258113,1708969839762,-500.0,0.00019178,2]
[315258114,1708969839771,-500.0,0.00019178,2]
[315258115,1708969839780,-858.21,0.00019178,2]
[315258116,1708969839789,-1212.5,0.00019178,2]
[315258117,1708969839798,-500.0,0.00019178,2]
[315258118,1708969839807,-540.64,0.00019178,2]
[315258119,1708969839816,-500.0,0.00019178,2]
[315258120,1708969839826,-500.0,0.00019178,2]
[315258121,1708969839835,-4716.03,0.00019178,2]
[315258122,1708969839844,-2517.97,0.00019178,2]
[315258123,1708969839854,-10889.35,0.00019178,2]
[315258124,1708969839863,-500.0,0.00019178,2]
[315258125,1708969839872,-500.0,0.00019178,2]
[315258126,1708969839881,-166.666666,0.00019178,2]
[315258127,1708969839890,-165.964175,0.00019178,2]
[315258128,1708969839899,-437.96965206,0.00019415,2]
[315258129,1708969839908,-999.7924886,0.00019451,2]
[315258130,1708969839917,-1519.07055314,0.00019451,2]
[315258131,1708969839926,-498.21081952,0.00019452,2]
[315258132,1708969839935,-500.0,0.00019452,2]
[315258133,1708969839947,-500.0,0.00019452,2]
[315258134,1708969839956,-503.32932476,0.00019452,2]
[315258135,1708969839965,-686.49,0.00019452,2]
[315258136,1708969839974,-500.0,0.00019452,2]
[315258137,1708969839984,-500.0,0.00019452,2]
[315258138,1708969839993,-508.50299991,0.00019452,2]
[315258139,1708969840002,-500.0,0.00019452,2]
[315258140,1708969840011,-500.0,0.00019452,2]
[315258141,1708969840020,-500.0,0.00019452,2]
[315258142,1708969840029,-500.0,0.00019452,2]
[315258143,1708969840038,-500.0,0.00019452,2]
[315258144,1708969840047,-1000.0,0.00019452,2]
[315258145,1708969840056,-500.0,0.00019452,2]
[315258146,1708969840065,-500.0,0.00019452,2]
[315258147,1708969840074,-579.6253241,0.00019452,2]
[315258148,1708969840083,-501.52534223,0.00019452,2]
[315258149,1708969840093,-522.16106929,0.00019452,2]
[315258150,1708969840102,-500.0,0.00019452,2]
[315258151,1708969840111,-500.0,0.00019452,2]
[315258152,1708969840121,-500.0,0.00019452,2]
[315258153,1708969840130,-500.0,0.00019452,2]
[315258154,1708969840139,-500.0,0.00019452,2]